Workbook

Sheet Instrucciones
B2: INVENTARIO NACIONAL DE GASES DE EFECTO INVERNADERO - AÑO BASE 2012
B3: SECTOR DESECHOS
B5: INSTRUCCIONES
B7: ALCANCE
B8: Según las Directrices del IPCC de 2006; El Sector residuos, categoría Residuos sólidos involucra a todas las emisiones de gases de efecto invernadero que se generan por :
B10: 6A: Eliminación de residuos sólidos
B11: 6B: Tratamientos de aguas residuales
B12: 6 B 1: Aguas residuales industriales
B13: 6 B 2: Aguas residuales domésticas y comerciales
B15: METODOLOGÍA DE CALCULO
B17: Directrices del IPCC para Inventarios Nacionales del IPCC - 2006 (IPCC 2006) en lo que respecta a residuos sólidos
B18: Directrices del IPCC para Inventarios Nacionales del IPCC - 1996 (IPCC 1996) en lo que respecta a aguas residuales
B19: Orientación del IPCC sobre las buenas prácticas y la gestión de la incertidumbre en los inventarios nacionales de Gases de Efecto Invernadero
B20: Sector: Desechos
F21: Para el cálculo de Emisiones GEI:
F26: Nivel 1: El método mas básico que es aplicado cuando se utiliza niveles de actividad disponibles y factores de emisión por defecto de las guías del IPCC.
F27: Nivel 2: Método intermedio de cálculo en términos de esfuerzo y sofisticación, en la mayoría de casos se basa en el uso de niveles de actividad disponible y factores de emisión mas detallados o específicos.
F29: Nivel 3: El método mas exigente en términos de complejidad y requerimientos de datos, usualmente implica el uso de modelos y ecuaciones complejas.
B32: ESTRUCTURA DE LA HOJA DE CALCULO
B34: Las hojas de cálculo, en este libro, están agrupadas por los siguientes colores:
B36: Color de hoja | C36: Descripción
C37: Caracterización de datos
C38: Información base de nivel de actividad
C39: Información procesada de nivel de actividad
C40: Propiedades, Factores de conversión y Factores de emisión de GEI
C41: Hojas de estimaciones de emisiones GEI por la disposición de residuos sólidos
C42: Resultados GEI por residuos sólidos
B44: Los grupos de hojas se relacionan como se muestra en el diagrama:
B68: TIPO DE CELDAS (PARA HOJAS DE ESTIMACIONES)
C70: Datos a ingresar
C71: Datos preestablecidos
C72: Factores calculados
C73: Datos calculados
B75: ABREVIATURAS
B77: GEI | C77: : Gases de Efecto Invernadero
B78: FE | C78: : Factor de Emisión
B79: INFOBASE | C79: : Información de Base
B80: 4A | C80: : Eliminación de residuos sólidos
B81: 4B | C81: : Tratamiento biológico de los residuos sólidos
B82: 4C | C82: : Incineración de los residuos sólidos
B83: INFORESUMEN | C83: : Información resumen
B84: INGEI | C84: : Inventario Nacional de Gases de Efecto Invernadero
B85: CO2 | C85: : Dióxido de carbono
B86: CH4 | C86: : Metano
B87: N2O | C87: : Oxido Nitroso
B88: CO2e | C88: : Dióxido de carbono equivalente
B89: SEDS | C89: : Sitios de eliminación de residuos sólidos (SEDS)
B90: Bo | C90: : Capacidad máxima de producción de metano

Sheet Características datos
B2: Caracterización de Datos - Sector Desechos (Residuos sólidos)
B4: Nombre de Categoría | C4: Código | D4: Subcodigo | E4: Fuente de emisión / captura | F4: Definición | G4: Nivel de actividad | H4: Unidad | I4: TIER/Nivel | J4: Fuente de información | K4: Uso de la información | L4: Gases de GEI generados por el nivel de actividad | M4: Comentarios | N4: Hojas relacionada
B5: Eliminación de residuos sólidos | C5: 6A | D5: 6A1 | E5: Residuos sólidos | F5: Definición IPCC: Emisiones de metano producidas durante la descomposición anáerobica de los residuos sólidos en vertederos. Definición INGEI: Emisiones de metano procedentes de la descomposición anaeróbica de los residuos sólidos dispuestos en sitios de eliminación de desechos sólidos (SEDS) que no son gestionados. | G5: Población urbana según región/provincia/distrito (información mas cercana al año en estudio) | H5: Personas | I5: 1 | J5: Instituto Nacional de Estadísticas e Informática (INEI) | K5: Permite conocer que fracción en cada distrito es de tipo urbana | L5: CH4 | N5: infoBase6A (Censo2007)
G6: Población nacional según región, provincia y distritos | H6: Personas | I6: 1 | J6: Instituto Nacional de Estadísticas e Informática (INEI) | K6: En base a esta se determina la cantidad de residuos sólidos generados | N6: infoBase6A(poblac2010)
G7: Caracterización de residuos sólidos | H7: % según tipo de residuo | I7: 1 | J7: Informes nacionales de residuos sólidos Estudios de caracterización de residuos sólidos Plan Integral de Gestión de Residuos Sólidos (PIGARS) | K7: Sirven para determinar, segúnla cantidad de carbono presente en cada tipo de residuos | N7: infoBase6A(Composición)
G8: Generación anual de residuos sólidos. | H8: Gg | I8: 1 | J8: Ministerio del Ambiente (MINAM) - Dirección General de Calidad Ambiental (DGCA) | K8: Está información se utiliza para estimar, en base a su contenido de carbono orgánico degradable (COD) y otras variables, las emisiones de metano que se generan por la descomposición de los residuos sólidos. | N8: infoBase6A(Caract. y GPC)
B9: Tratamiento de aguas residuales | C9: 6B | D9: 6B1 | E9: Efluentes industriales | F9: Definición IPCC: Emisiones de metano que se generan en los procesos de recolección, tratamiento y disposición en aguas superficiales de las aguas residuales y lodos generados procedentes de industrias tales como: alimentos, textiles, pulpa y producción de papel, entre otras. Definición INGEI: Emisiones de metano generadas en los procesos de tratamiento de aguas residuales industriales y la descomposición de los respectivos lodos generados. | G9: Producción industrial según tipo de industria. | H9: t/año | I9: 1 | J9: Ministerio de la Producción (PRODUCE) | K9: Sirven para determinar en su conjunto las emisiones de metano generadas por el tratamiento de las aguas residuales industriales. | L9: CH4 | N9: InfoBase 6B1 InfoProc 6B1
G10: Componente orgánico degradable (DQO) | H10: Kg DQO/m3 agua residual | I10: 1 | J10: Orientación del IPCC sobre las buenas prácticas y la gestión de la incertidumbre en los inventarios nacionales de gases de efecto invernadero | N10: FE 6B1
G11: Agua residual generada | H11: (m3/tonelada de producto) | I11: 1 | J11: Orientación del IPCC sobre las buenas prácticas y la gestión de la incertidumbre en los inventarios nacionales de gases de efecto invernadero | N11: FE 6B1
D12: 6B2a | E12: Aguas residuales domésticas | F12: Definición IPCC: Emisiones de metano que se generan en los tratamientos de aguas residuales y lodos procedentes de las viviendas y fuentes comerciales. Se consideran además las emisiones de oxido nitroso procedentes de las excretas humanas vertidas en ambientes acuáticos. Definición INGEI: Emisiones de metano generadas en los procesos de tratamiento de aguas residuales domésticas y comerciales, además de la descomposición de los respectivos lodos generados. Se considera también las emisiones de oxido nitroso generadas por excretas humanas. | G12: Población según región | H12: en miles | I12: 1 | J12: Instituto Nacional de Estadísticas e Informática (INEI) | K12: Sirven para determinar en su conjunto las emisiones de metano generadas por el tratamiento de las aguas residuales domésticas. | L12: CH4 | N12: InfoBase 6B2 AR InfoProc 6B2 AR
G13: Componente orgánico degradable (DBO) | H13: Kg DBO/1000 pesonas año | I13: 1 | J13: Reglamento Nacional de Edificaciones – Norma OS.090: Plantas de Tratamiento de Aguas Residuales. (Debe hacerse un ajuste para llevarlo a las unidades requeridas). | N13: Prop. Y Fact. de conversión InfoProc 6B2
G14: Volumen de aguas residuales tratadas | H14: % ó m3 | I14: 1 | J14: Superintendencia Nacional de Servicios de Saneamiento (SUNASS) | N14: InfoBase 6B2 AR
D15: 6B2b | E15: Excretas humanas | G15: Población nacional | H15: Personas
G16: Consumo de proteínas | H16: g/persona.día | I16: 1 | J16: Organización de las Naciones Unidas para la Agricultura y la Alimentación (FAO) | K16: Sirve para determinar la cantidad de nitrógeno contenida en la orina humana | L16: N2O | N16: InfoBase 6B2 EH

Sheet InfoBase 6B1
B2: Información Básica: Estadísticas sobre producción nacional de diversos productos
B4: DATOS DE LA INFORMACIÓN BASE
B5: Código | C5: 6 B 1
B6: Subcodigo
B7: Información | C7: Nivel de actividad | D7: Producción
C8: Documento | D8: Anuario Estadístico Industrial, Mipyme y Comercio Interno 2012
C9: Título | D9: RELACIÓN DE PRINCIPALES PRODUCTOS QUE PARTICIPAN EN LA MUESTRA DEL ÍNDICE DE CRECIMIENTO INDUSTRIAL, 2003-12
C10: Subtitulo
B11: Ubicación especifica | C11: Pagina | D11: 81 | F11: Cuadro | I11: Anexo
B12: Vínculo | C12: http://www.produce.gob.pe/images/stories/Repositorio/estadistica/anuario/anuario-estadistico-2012.pdf
B13: Institución | C13: Ministerio de la Producción - PRODUCE
B17: DESCRIPCIÓN | D17: UNIDAD | E17: 2010 | G17: Relación de esta hoja, con otras:
B18: ALIMENTOS
B19: Carne de Ave Beneficiada | D19: TM. | E19: 782365
B20: Carne de Vacuno Beneficiada | D20: TM. | E20: 171872
B21: Conservas de Pescados y Mariscos | D21: TM. | E21: 77800
B22: Harina de Anchoveta, otras Especies y Residuos | D22: TM. | E22: 787400
B23: Jugos y Refrescos Diversos | D23: KG. | E23: 310346156
B24: Esparragos Congelados | D24: KG. | E24: 10603000
B25: Conservas de Esparragos | D25: KG. | E25: 31735000
B26: Margarina | D26: TM. | E26: 21920
B27: Aceites Vegetal y Compuesto | D27: TM. | E27: 233965
B28: Leche Evaporada | D28: TM. | E28: 409468.9
B29: Quesos | D29: KG. | E29: 6358934.9
B30: Yogurt | D30: KG. | E30: 135351577
B31: Azúcar Refinada | D31: TM. | E31: 1039167.5
B33: ELABORACION DE BEBIDAS
B34: Vinos y Espumantes | D34: LT. | E34: 9794177
B35: Cerveza Blanca | D35: ML.LT. | E35: 1230334.8
B37: FABRICACION DE PAPEL Y DE PRODUCTOS DE PAPEL
B38: Papel Kraft y Similares | D38: TM. | E38: 3429.2
B39: Papel Bond y Similares | D39: TM. | E39: 38625.3
B40: Cartón Liner | D40: TM. | E40: 55856.8
B41: Cartón Corrugado | D41: TM. | E41: 18725.1
B43: FABRICACION DE OTROS PRODUCTOS QUIMICOS
B44: Productos de Limpieza del Hogar | D44: KG. | E44: 22807607
B45: Champú | D45: TM. | E45: 7679.2
B46: Detergentes | D46: TM. | E46: 169944.9
B47: Jabón para Lavar Ropa | D47: TM. | E47: 34024.9
B48: Jabón de Tocador | D48: TM. | E48: 6973
B50: FABRICACION DE PRODUCTOS DE PLASTICO
B51: Polietileno (Consumo de) | D51: KG. | E51: 42688121.7
B52: Poliestireno (Consumo de) | D52: KG. | E52: 1083703.5
B53: Polipropileno (Consumo de) | D53: KG. | E53: 40956920.1
B54: P V C (Consumo de) | D54: KG. | E54: 69437689.6
B55: Plastificantes D O P (Consumo de) | D55: KG. | E55: 3016367
B56: Masterbatch (Consumo de) | D56: KG. | E56: 1465874.8
B57: Resina Pet para Envases (Consumo de) | D57: KG. | E57: 84830154.1

Sheet InfoProc 6B1
B2: Información Procesada: Producción anual en toneladas
B4: DESCRIPCIÓN | C4: UNIDAD | D4: 2012 | F4: Relación de esta hoja, con otras:
B5: ALIMENTOS
B6: Carne de Ave Beneficiada | C6: t | D6: ='InfoBase 6B1'!E19 -> 782365
B7: Carne de Vacuno Beneficiada | C7: t | D7: ='InfoBase 6B1'!E20 -> 171872
B8: Conservas de Pescados y Mariscos | C8: t | D8: ='InfoBase 6B1'!E21 -> 77800
B9: Harina de Anchoveta, otras Especies y Residuos | C9: t | D9: ='InfoBase 6B1'!E22 -> 787400
B10: Jugos y Refrescos Diversos | C10: t | D10: ='InfoBase 6B1'!E23/'Prop. y Fact. de conversión'!$C$5 -> 310346.156
B11: Esparragos Congelados | C11: t | D11: ='InfoBase 6B1'!E24/'Prop. y Fact. de conversión'!$C$5 -> 10603
B12: Conservas de Esparragos | C12: t | D12: ='InfoBase 6B1'!E25/'Prop. y Fact. de conversión'!$C$5 -> 31735
B13: Margarina | C13: t | D13: ='InfoBase 6B1'!E26 -> 21920
B14: Aceites Vegetal y Compuesto | C14: t | D14: ='InfoBase 6B1'!E27 -> 233965
B15: Leche Evaporada | C15: t | D15: ='InfoBase 6B1'!E28 -> 409468.9
B16: Quesos | C16: t | D16: ='InfoBase 6B1'!E29/'Prop. y Fact. de conversión'!$C$5 -> 6358.9349
B17: Yogurt | C17: t | D17: ='InfoBase 6B1'!E30/'Prop. y Fact. de conversión'!$C$5 -> 135351.577
B18: Azúcar Refinada | C18: t | D18: ='InfoBase 6B1'!E31 -> 1039167.5
B20: ELABORACION DE BEBIDAS
B21: Vinos y Espumantes | C21: t | D21: ='InfoBase 6B1'!E34*'Prop. y Fact. de conversión'!C34/'Prop. y Fact. de conversión'!$D$13 -> 9759.897381
B22: Cerveza Blanca | C22: t | D22: ='InfoBase 6B1'!E35*'Prop. y Fact. de conversión'!C35/'Prop. y Fact. de conversión'!$D$13*1000 -> 1242638.148
B24: FABRICACION DE PAPEL Y DE PRODUCTOS DE PAPEL
B25: Papel Kraft y Similares | C25: t | D25: ='InfoBase 6B1'!E38 -> 3429.2
B26: Papel Bond y Similares | C26: t | D26: ='InfoBase 6B1'!E39 -> 38625.3
B27: Cartón Liner | C27: t | D27: ='InfoBase 6B1'!E40 -> 55856.8
B28: Cartón Corrugado | C28: t | D28: ='InfoBase 6B1'!E41 -> 18725.1
B30: FABRICACION DE OTROS PRODUCTOS QUIMICOS
B31: Productos de Limpieza del Hogar | C31: t | D31: ='InfoBase 6B1'!E44/'Prop. y Fact. de conversión'!$C$5 -> 22807.607
B32: Champú | C32: t | D32: ='InfoBase 6B1'!E45 -> 7679.2
B33: Detergentes | C33: t | D33: ='InfoBase 6B1'!E46 -> 169944.9
B34: Jabón para Lavar Ropa | C34: t | D34: ='InfoBase 6B1'!E47 -> 34024.9
B35: Jabón de Tocador | C35: t | D35: ='InfoBase 6B1'!E48 -> 6973
B37: FABRICACION DE PRODUCTOS DE PLASTICO
B38: Polietileno (Consumo de) | C38: t | D38: ='InfoBase 6B1'!E51/'Prop. y Fact. de conversión'!$C$5 -> 42688.1217
B39: Poliestireno (Consumo de) | C39: t | D39: ='InfoBase 6B1'!E52/'Prop. y Fact. de conversión'!$C$5 -> 1083.7035
B40: Polipropileno (Consumo de) | C40: t | D40: ='InfoBase 6B1'!E53/'Prop. y Fact. de conversión'!$C$5 -> 40956.9201
B41: P V C (Consumo de) | C41: t | D41: ='InfoBase 6B1'!E54/'Prop. y Fact. de conversión'!$C$5 -> 69437.6896
B42: Plastificantes D O P (Consumo de) | C42: t | D42: ='InfoBase 6B1'!E55/'Prop. y Fact. de conversión'!$C$5 -> 3016.367
B43: Masterbatch (Consumo de) | C43: t | D43: ='InfoBase 6B1'!E56/'Prop. y Fact. de conversión'!$C$5 -> 1465.8748
B44: Resina Pet para Envases (Consumo de) | C44: t | D44: ='InfoBase 6B1'!E57/'Prop. y Fact. de conversión'!$C$5 -> 84830.1541

Sheet Prop. y Fact. de conversión
B2: Conversión de unidades
B4: Masa
B5: 1 tonelada | C5: 1000 | D5: kg
B6: 1 kilogramo | C6: 1000 | D6: g
B7: 1 tonelada | C7: =C5*C6 -> 1000000 | D7: g
B9: Prefijo | C9: Simbolo | D9: Factor
B10: deca | C10: da | D10: =10^1 -> 10
B11: hecto | C11: h | D11: =10^2 -> 100
B12: kilo | C12: k | D12: =10^3 -> 1000
B13: mega | C13: M | D13: =10^6 -> 1000000
B14: giga | C14: G | D14: =10^9 -> 1000000000
B15: tera | C15: T | D15: =10^12 -> 1000000000000
B16: Fuente: Sistema Internacional - Guide for the Use of the International System of Units (SI) http://physics.nist.gov/cuu/pdf/sp811.pdf
B19: Volumen
B20: 1 centimetro cúbico | C20: =1/1000 -> 0.001 | D20: l
B21: Fuente: http://www.metric-conversions.org/es/volumen/tabla-de-conversion-de-centimetros-cubicos-a-litros.htm
B23: Demanda Bioquímica de Oxígeno (DBO)
B25: DBO5 | C25: 50 | D25: g/hab.día
B32: Densidades de bebidas
B34: Densidad del vino | C34: =(996+997)/2 -> 996.5 | D34: g/l
B35: Densidad de cerveza | C35: 1010 | D35: g/cm3
F40: http://www.inti.gob.ar/interlaboratorios/informes/2010/alimentos/2010_informe_final_vinos.pdf
F57: http://www.atpplleal.com/Pujat/file/DENSIDAD%20Y%20PESO%20ESPECIFICO.pdf

Sheet FE 6B1
B2: Demanda Química de Oxígeno (DQO)
B4: ALIMENTOS | C4: DQO (g/l)
B5: ALIMENTOS
B6: Carne de Ave Beneficiada | C6: 4.1
B7: Carne de Vacuno Beneficiada | C7: 4.1
B8: Conservas de Pescados y Mariscos | C8: 2.5
B9: Harina de Anchoveta, otras Especies y Residuos | C9: 2.5
B10: Jugos y Refrescos Diversos | C10: 2
B11: Esparragos Congelados | C11: 5
B12: Conservas de Esparragos | C12: 5
B13: Margarina | C13: 0.85
B14: Aceites Vegetal y Compuesto | C14: 0.85
B15: Leche Evaporada | C15: 2.7
B16: Quesos | C16: 2.7
B17: Yogurt | C17: 2.7
B18: Azúcar Refinada | C18: 3.2
B20: ELABORACION DE BEBIDAS
B21: Vinos y Espumantes | C21: 1.5
B22: Cerveza Blanca | C22: 2.9
B24: FABRICACION DE PAPEL Y DE PRODUCTOS DE PAPEL
B25: Papel Kraft y Similares | C25: 9
B26: Papel Bond y Similares | C26: 9
B27: Cartón Liner | C27: 9
B28: Cartón Corrugado | C28: 9
B30: FABRICACION DE OTROS PRODUCTOS QUIMICOS
B31: Productos de Limpieza del Hogar | C31: 0.85
B32: Champú | C32: 0.85
B33: Detergentes | C33: 0.85
B34: Jabón para Lavar Ropa | C34: 0.85
B35: Jabón de Tocador | C35: 0.85
B37: FABRICACION DE PRODUCTOS DE PLASTICO
B38: Polietileno (Consumo de) | C38: 3.7
B39: Poliestireno (Consumo de) | C39: 3.7
B40: Polipropileno (Consumo de) | C40: 3.7
B41: P V C (Consumo de) | C41: 3.7
B42: Plastificantes D O P (Consumo de) | C42: 3.7
B43: Masterbatch (Consumo de) | C43: 3.7
B44: Resina Pet para Envases (Consumo de) | C44: 3.7
B45: Fuente: OBP - Cuadro 5.4
B47: Generación de efluentes
B49: ALIMENTOS | C49: Generación de efluenes (m3/Mg)
B50: ALIMENTOS
B51: Carne de Ave Beneficiada | C51: 13
B52: Carne de Vacuno Beneficiada | C52: 13
B53: Conservas de Pescados y Mariscos | C53: 13
B54: Harina de Anchoveta, otras Especies y Residuos | C54: 13
B55: Jugos y Refrescos Diversos | C55: 2
B56: Esparragos Congelados | C56: 20
B57: Conservas de Esparragos | C57: 20
B58: Margarina | C58: 3.1
B59: Aceites Vegetal y Compuesto | C59: 3.1
B60: Leche Evaporada | C60: 7
B61: Quesos | C61: 7
B62: Yogurt | C62: 7
B63: Azúcar Refinada | C63: 11
B65: ELABORACION DE BEBIDAS
B66: Vinos y Espumantes | C66: 23
B67: Cerveza Blanca | C67: 6.3
B69: FABRICACION DE PAPEL Y DE PRODUCTOS DE PAPEL
B70: Papel Kraft y Similares | C70: 162
B71: Papel Bond y Similares | C71: 162
B72: Cartón Liner | C72: 162
B73: Cartón Corrugado | C73: 162
B75: FABRICACION DE OTROS PRODUCTOS QUIMICOS
B76: Productos de Limpieza del Hogar | C76: 3
B77: Champú | C77: 3
B78: Detergentes | C78: 3
B79: Jabón para Lavar Ropa | C79: 3
B80: Jabón de Tocador | C80: 3
B82: FABRICACION DE PRODUCTOS DE PLASTICO
B83: Polietileno (Consumo de) | C83: 0.6
B84: Poliestireno (Consumo de) | C84: 0.6
B85: Polipropileno (Consumo de) | C85: 0.6
B86: P V C (Consumo de) | C86: 0.6
B87: Plastificantes D O P (Consumo de) | C87: 0.6
B88: Masterbatch (Consumo de) | C88: 0.6
B89: Resina Pet para Envases (Consumo de) | C89: 0.6
B90: Fuente: OBP - Cuadro 5.4
B93: Factores de emisión para el tratamiento de aguas industriales
B95: Fracción de los efluentes tratados | C95: 0.2
B96: Factor de conversión de metano | C96: 0.9
B97: IPCC 1996 Capítulo Desperdicios Tabla 6-8
B100: Capacidad máxima de producción de metano (Bo)
B102: Bo | C102: 0.25 | D102: kg CH4/kg DBO

Sheet Emisiones GEI 6B1
B2: Estimación de metano generado por el tratamiento de aguas residuales industriales
B4: Sector | C4: Desechos
B5: Categoría | C5: Aguas residuales industriales
B6: Código de categoría | C6: 6B1
B8: TIPO DE INDUSTRIA | C8: A | D8: B | E8: C | F8: D | G8: E | H8: F
C9: Total producción industrial (t/año) | D9: Componente orgánico degradable (Kg DQO/m3 agua residual) | E9: Agua residual producida (m3/tonelada de producto) | F9: Fracción del componente orgánico degradable removido como lodo | G9: Total del componente orgánico del agua residual industrial (kg DQO/año) | H9: Total del componente orgánico del lodo industrial (kg DQO/año)
G10: E = [A x B x C x(1-D)] | H10: F = (A x B x C x D)
B11: ALIMENTOS
B12: Carne de Ave Beneficiada | C12: ='InfoProc 6B1'!D6 -> 782365 | D12: ='FE 6B1'!C6 -> 4.1 | E12: ='FE 6B1'!C51 -> 13 | F12: 0 | G12: =(C12*D12*E12*(1-F12)) -> 41700054.5 | H12: =C12*D12*E12*F12 -> 0
B13: Carne de Vacuno Beneficiada | C13: ='InfoProc 6B1'!D7 -> 171872 | D13: ='FE 6B1'!C7 -> 4.1 | E13: ='FE 6B1'!C52 -> 13 | F13: 0 | G13: =(C13*D13*E13*(1-F13)) -> 9160777.6 | H13: =C13*D13*E13*F13 -> 0
B14: Conservas de Pescados y Mariscos | C14: ='InfoProc 6B1'!D8 -> 77800 | D14: ='FE 6B1'!C8 -> 2.5 | E14: ='FE 6B1'!C53 -> 13 | F14: 0 | G14: 2528500 | H14: 0
B15: Harina de Anchoveta, otras Especies y Residuos | C15: ='InfoProc 6B1'!D9 -> 787400 | D15: ='FE 6B1'!C9 -> 2.5 | E15: ='FE 6B1'!C54 -> 13 | F15: 0 | G15: 25590500 | H15: 0
B16: Jugos y Refrescos Diversos | C16: ='InfoProc 6B1'!D10 -> 310346.156 | D16: ='FE 6B1'!C10 -> 2 | E16: ='FE 6B1'!C55 -> 2 | F16: 0 | G16: 1241384.624 | H16: 0
B17: Esparragos Congelados | C17: ='InfoProc 6B1'!D11 -> 10603 | D17: ='FE 6B1'!C11 -> 5 | E17: ='FE 6B1'!C56 -> 20 | F17: 0 | G17: 1060300 | H17: 0
B18: Conservas de Esparragos | C18: ='InfoProc 6B1'!D12 -> 31735 | D18: ='FE 6B1'!C12 -> 5 | E18: ='FE 6B1'!C57 -> 20 | F18: 0 | G18: 3173500 | H18: 0
B19: Margarina | C19: ='InfoProc 6B1'!D13 -> 21920 | D19: ='FE 6B1'!C13 -> 0.85 | E19: ='FE 6B1'!C58 -> 3.1 | F19: 0 | G19: 57759.2 | H19: 0
B20: Aceites Vegetal y Compuesto | C20: ='InfoProc 6B1'!D14 -> 233965 | D20: ='FE 6B1'!C14 -> 0.85 | E20: ='FE 6B1'!C59 -> 3.1 | F20: 0 | G20: 616497.775 | H20: 0
B21: Leche Evaporada | C21: ='InfoProc 6B1'!D15 -> 409468.9 | D21: ='FE 6B1'!C15 -> 2.7 | E21: ='FE 6B1'!C60 -> 7 | F21: 0 | G21: 7738962.21 | H21: 0
B22: Quesos | C22: ='InfoProc 6B1'!D16 -> 6358.9349 | D22: ='FE 6B1'!C16 -> 2.7 | E22: ='FE 6B1'!C61 -> 7 | F22: 0 | G22: 120183.8696 | H22: 0
B23: Yogurt | C23: ='InfoProc 6B1'!D17 -> 135351.577 | D23: ='FE 6B1'!C17 -> 2.7 | E23: ='FE 6B1'!C62 -> 7 | F23: 0 | G23: 2558144.805 | H23: 0
B24: Azúcar Refinada | C24: ='InfoProc 6B1'!D18 -> 1039167.5 | D24: ='FE 6B1'!C18 -> 3.2 | E24: ='FE 6B1'!C63 -> 11 | F24: 0 | G24: 36578696 | H24: 0
B26: ELABORACION DE BEBIDAS
B27: Vinos y Espumantes | C27: ='InfoProc 6B1'!D21 -> 9759.897381 | D27: ='FE 6B1'!C21 -> 1.5 | E27: ='FE 6B1'!C66 -> 23 | F27: 0 | G27: 336716.4596 | H27: =C27*D27*E27*F27 -> 0
B28: Cerveza Blanca | C28: ='InfoProc 6B1'!D22 -> 1242638.148 | D28: ='FE 6B1'!C22 -> 2.9 | E28: ='FE 6B1'!C67 -> 6.3 | F28: 0 | G28: 22702998.96 | H28: 0
B30: FABRICACION DE PAPEL Y DE PRODUCTOS DE PAPEL
B31: Papel Kraft y Similares | C31: ='InfoProc 6B1'!D25 -> 3429.2 | D31: ='FE 6B1'!C25 -> 9 | E31: ='FE 6B1'!C70 -> 162 | F31: 0 | G31: 4999773.6 | H31: 0
B32: Papel Bond y Similares | C32: ='InfoProc 6B1'!D26 -> 38625.3 | D32: ='FE 6B1'!C26 -> 9 | E32: ='FE 6B1'!C71 -> 162 | F32: 0 | G32: 56315687.4 | H32: 0
B33: Cartón Liner | C33: ='InfoProc 6B1'!D27 -> 55856.8 | D33: ='FE 6B1'!C27 -> 9 | E33: ='FE 6B1'!C72 -> 162 | F33: 0 | G33: 81439214.4 | H33: 0
B34: Cartón Corrugado | C34: ='InfoProc 6B1'!D28 -> 18725.1 | D34: ='FE 6B1'!C28 -> 9 | E34: ='FE 6B1'!C73 -> 162 | F34: 0 | G34: 27301195.8 | H34: 0
B36: FABRICACION DE OTROS PRODUCTOS QUIMICOS
B37: Productos de Limpieza del Hogar | C37: ='InfoProc 6B1'!D31 -> 22807.607 | D37: ='FE 6B1'!C31 -> 0.85 | E37: ='FE 6B1'!C76 -> 3 | F37: 0 | G37: 58159.39785 | H37: 0
B38: Champú | C38: ='InfoProc 6B1'!D32 -> 7679.2 | D38: ='FE 6B1'!C32 -> 0.85 | E38: ='FE 6B1'!C77 -> 3 | F38: 0 | G38: 19581.96 | H38: 0
B39: Detergentes | C39: ='InfoProc 6B1'!D33 -> 169944.9 | D39: ='FE 6B1'!C33 -> 0.85 | E39: ='FE 6B1'!C78 -> 3 | F39: 0 | G39: 433359.495 | H39: 0
B40: Jabón para Lavar Ropa | C40: ='InfoProc 6B1'!D34 -> 34024.9 | D40: ='FE 6B1'!C34 -> 0.85 | E40: ='FE 6B1'!C79 -> 3 | F40: 0 | G40: 86763.495 | H40: 0
B41: Jabón de Tocador | C41: ='InfoProc 6B1'!D35 -> 6973 | D41: ='FE 6B1'!C35 -> 0.85 | E41: ='FE 6B1'!C80 -> 3 | F41: 0 | G41: 17781.15 | H41: 0
B43: FABRICACION DE PRODUCTOS DE PLASTICO
B44: Polietileno (Consumo de) | C44: ='InfoProc 6B1'!D38 -> 42688.1217 | D44: ='FE 6B1'!C38 -> 3.7 | E44: ='FE 6B1'!C83 -> 0.6 | F44: 0 | G44: 94767.63017 | H44: 0
B45: Poliestireno (Consumo de) | C45: ='InfoProc 6B1'!D39 -> 1083.7035 | D45: ='FE 6B1'!C39 -> 3.7 | E45: ='FE 6B1'!C84 -> 0.6 | F45: 0 | G45: 2405.82177 | H45: 0
B46: Polipropileno (Consumo de) | C46: ='InfoProc 6B1'!D40 -> 40956.9201 | D46: ='FE 6B1'!C40 -> 3.7 | E46: ='FE 6B1'!C85 -> 0.6 | F46: 0 | G46: 90924.36262 | H46: 0
B47: P V C (Consumo de) | C47: ='InfoProc 6B1'!D41 -> 69437.6896 | D47: ='FE 6B1'!C41 -> 3.7 | E47: ='FE 6B1'!C86 -> 0.6 | F47: 0 | G47: 154151.6709 | H47: 0
B48: Plastificantes D O P (Consumo de) | C48: ='InfoProc 6B1'!D42 -> 3016.367 | D48: ='FE 6B1'!C42 -> 3.7 | E48: ='FE 6B1'!C87 -> 0.6 | F48: 0 | G48: 6696.33474 | H48: 0
B49: Masterbatch (Consumo de) | C49: ='InfoProc 6B1'!D43 -> 1465.8748 | D49: ='FE 6B1'!C43 -> 3.7 | E49: ='FE 6B1'!C88 -> 0.6 | F49: 0 | G49: 3254.242056 | H49: 0
B50: Resina Pet para Envases (Consumo de) | C50: ='InfoProc 6B1'!D44 -> 84830.1541 | D50: ='FE 6B1'!C44 -> 3.7 | E50: ='FE 6B1'!C89 -> 0.6 | F50: 0 | G50: 188322.9421 | H50: 0
F51: Total | G51: =SUM(G12:G50) -> 326377015.7 | H51: =SUM(H12:H50) -> 0
B54: A | C54: B | D54: C | E54: D | F54: E | G54: F
B55: Sistemas de manejo de aguas residuales | C55: Fracción de agua residual tratada por el sistema de manejo | D55: Factor de conversión de metano (MCF) | E55: Producto | F55: Capacidad máxima de producción de metano - Bo (kg CH4/kg DC) | G55: Factor de emisión para aguas residuales industriales (kg CH4/kg COD)
E56: D = (B x C) | G56: F = (D x E)
B57: No especificado | C57: ='FE 6B1'!C95 -> 0.2 | D57: ='FE 6B1'!C96 -> 0.9 | E57: =C57*D57 -> 0.18
E58: =C58*D58 -> 0
D59: Aggregate MCF: | E59: =SUM(E57:E58) -> 0.18 | F59: ='FE 6B1'!C102 -> 0.25 | G59: =E59*F59 -> 0.045
B61: Nota: Bo se expresa en unidades de kg CH4 / kg DC, donde DC es el indicador del componente degradable de los residuos (ya sea DQO o DBO). Por definición, DBO es menor o igual a COD; la máxima DBO posible, es de hecho, la DQO. Por lo tanto, al estimar el máximo potencial de producción de CH4 de DBO o DQO, el CH4 potencial máxima producida por unidad de BOD es equivalente a la máxima potencial CH4 producida por unidad de DQO. Este valor es 0,25. kg CH4 / kg de DQO.
B66: A | C66: B | D66: C | E66: D | F66: E | G66: F
B67: Sistemas de manejo de aguas residuales | C67: Fracción de lodo tratado por el sistema de manejo | D67: Factor de conversión de metano (MCF) | E67: Producto | F67: Capacidad máxima de producción de metano - Bo (kg CH4/kg COD) | G67: Factor de emisión para el lodo industrial (kg CH4/kg COD)
E68: D = (B x C) | G68: F = (D x E)
B69: No especificado | C69: 0 | E69: =C69*D69 -> 0
E70: =C70*D70 -> 0
D71: Aggregate MCF: | E71: =SUM(E69:E70) -> 0 | G71: =E71*F71 -> 0
C74: A | D74: B | E74: C | F74: D | G74: E
C75: Total componente orgánico (Kg DQO/año) | D75: Factor de Emisión (Kg CH4/Kg DQO) | E75: Emisión de metano sin recuperación o quema (Kg CH4) | F75: Metano recuperado o quemado (Kg CH4) | G75: Emisiones netas de CH4 (Gg CH4)
E76: C = ( A x B) | G76: E = (C - D) / 1 000 000
B77: Agua residual | C77: =G51 -> 326377015.7 | D77: =G59 -> 0.045 | E77: =C77*D77 -> 14686965.71 | F77: 0 | G77: =(E77-F77)/1000000 -> 14.68696571
B78: Lodos | C78: =H51 -> 0 | D78: =G71 -> 0 | E78: =C78*D78 -> 0 | G78: =(E78-F78)/1000000 -> 0

Sheet Resultados INGEI
B2: Inventario de emisiones de gases de efecto invernadero para sector desechos, categoría residuos sólidos (Perú - 2012)
B5: Código de fuentes | C5: Categorías de fuentes y sumideros | D5: Dióxido de carbono [GgCO2] | E5: Metano [GgCH4] | F5: Óxido nitroso [GgN2O] | G5: Emisiones de GEI [GgCO2e]
B6: 6A2 | C6: Sitios de eliminación de desechos | G6: =D6+E6*21+F6*310 -> 0
B7: 6B1 | C7: Aguas residuales industriales | E7: ='Emisiones GEI 6B1'!G77 -> 14.68696571 | G7: =D7+E7*21+F7*310 -> 308.4262798
B8: 6B2a | C8: Aguas residuales domésticas | G8: =D8+E8*21+F8*310 -> 0
B9: 6B2b | C9: Excretas humanas
B10: Total | G10: =SUM(G6:G9) -> 308.4262798
